bitfinex-derivatives/quotes_SOLF0:USTF0_20240912
["timestamp","ask_amount","ask_price","bid_price","bid_amount"]
[1726174666996,11.28,135.93,135.91,7.361]
[1726174667895,11.28,135.93,135.92,3.3109]
[1726174668702,11.28,135.93,135.91,10.6721]
[1726174668903,11.28,135.93,135.91,7.361]
[1726174669898,11.28,135.93,135.92,10.6719]
[1726174673105,11.28,135.93,135.91,10.672]
[1726174673902,11.28,135.93,135.92,3.3109]
[1726174675112,11.28,135.93,135.91,3.311]
[1726174675300,11.28,135.93,135.91,10.672]
[1726174675501,11.28,135.92,135.91,10.672]
[1726174679006,11.28,135.94,135.93,10.6716]
[1726174681911,11.28,135.94,135.93,3.3106]
[1726174692922,11.28,135.94,135.93,10.6716]
[1726174694128,3.75487526,135.99,135.95,3.31]
[1726174694318,11.28,135.97,135.95,3.31]
[1726174695420,11.28,135.97,135.95,10.671]
[1726174699815,11.28,135.96,135.95,10.671]
[1726174700017,11.28,135.96,135.95,3.31]
[1726174701014,3.3103,135.95,135.92,10.6718]
[1726174701228,11.28,135.93,135.92,7.361]
[1726174702917,11.28,135.93,135.92,10.6718]
[1726174705726,11.28,135.95,135.92,10.6718]
[1726174706031,11.28,135.95,135.93,3.3106]
[1726174706232,11.28,135.95,135.94,7.361]
[1726174713048,11.28,135.95,135.93,3.3106]
[1726174713649,11.28,135.95,135.93,10.6716]
[1726174714346,14.5902,135.95,135.93,7.361]
[1726174714654,11.28,135.94,135.92,10.6717]
[1726174715038,11.28,135.93,135.92,7.361]
[1726174715239,11.28,135.93,135.88,12.6039]
[1726174715240,11.28,135.93,135.88,8.6849]
[1726174715539,11.28,135.91,135.9,7.361]
[1726174716343,11.28,135.91,135.9,10.6724]
[1726174718950,11.28,135.92,135.9,10.6724]
[1726174723355,14.5911,135.91,135.88,1.3809]
[1726174723650,11.28,135.89,135.86,8.6685]
[1726174723850,11.28,135.88,135.86,8.6685]
[1726174724057,11.28,135.87,135.86,8.6685]
[1726174724442,11.28,135.87,135.86,1.3075]
[1726174725047,11.28,135.87,135.85,7.361]
[1726174727358,11.28,135.87,135.83,8.7359]
[1726174727866,11.28,135.84,135.83,7.361]
[1726174728567,11.28,135.84,135.8,7.361]
[1726174729055,11.28,135.84,135.82,7.361]
[1726174730265,11.28,135.84,135.83,7.361]
[1726174730666,3.3122,135.87,135.83,10.6741]
[1726174730960,11.28,135.87,135.83,7.361]
[1726174731165,11.28,135.85,135.83,7.361]
[1726174733064,11.28,135.85,135.83,10.6741]
[1726174733760,3.62823061,135.9,135.84,3.3128]
[1726174733961,11.28,135.86,135.84,3.3128]
[1726174734467,11.28,135.85,135.83,10.6739]
[1726174734655,177.20923316,135.95,135.78,8.663]
[1726174734862,11.28,135.84,135.8,7.361]
[1726174735275,11.28,135.84,135.83,7.361]
[1726174735675,11.28,135.84,135.83,10.6741]
[1726174736355,11.28,135.85,135.83,10.6741]
[1726174736568,11.28,135.85,135.84,3.3128]
[1726174736972,11.28,135.85,135.83,7.361]
[1726174737270,11.28,135.85,135.83,10.674]
[1726174741868,158.76997714,135.95,135.82,22.24677277]
[1726174742072,11.28,135.88,135.83,21.3525]
[1726174742773,11.28,135.88,135.85,3.3125]
[1726174746772,11.28,135.88,135.83,21.3525]
[1726174746773,11.28,135.88,135.86,3.3123]
[1726174747980,158.76997714,135.95,135.87,3.3121]
[1726174747981,11.28,135.89,135.87,3.3121]
[1726174750676,11.28,135.9,135.88,3.3118]
[1726174755278,3.3105,135.94,135.87,11.28]
[1726174755472,11.28,135.93,135.88,11.28]
[1726174756776,14.5907,135.93,135.89,3.3114]
[1726174757379,14.5907,135.93,135.88,11.28]
[1726174758582,14.5907,135.93,135.89,3.3115]
[1726174759481,14.5907,135.93,135.9,3.3114]
[1726174760886,11.28,135.93,135.9,3.3114]
[1726174761478,11.28,135.93,135.91,3.3111]
[1726174764684,14.5907,135.93,135.91,3.3111]
[1726174764885,158.76997714,135.95,135.91,3.3111]
[1726174765183,11.28,135.93,135.91,3.3111]
[1726174771876,11.28,135.93,135.92,3.3109]
[1726174772277,11.28,135.94,135.92,3.3109]
[1726174775884,11.28,135.94,135.93,3.3106]
[1726174776891,3.31,135.96,135.93,3.3106]
[1726174776892,11.28,135.95,135.93,3.3106]
[1726174777991,11.28,135.94,135.89,11.28]
[1726174779091,14.5904,135.94,135.91,3.3109]
[1726174780289,14.5904,135.94,135.9,3.3113]
[1726174780491,14.5904,135.94,135.85,7.361]
[1726174780492,11.28,135.91,135.85,11.28]
[1726174780687,11.28,135.9,135.85,11.28]
[1726174781793,14.5915,135.9,135.87,3.3119]
[1726174781991,11.28,135.9,135.87,3.3119]
[1726174782590,11.28,135.9,135.88,3.3119]
[1726174784391,11.28,135.9,135.87,3.312]
[1726174784997,3.3111,135.92,135.88,3.3118]
[1726174785203,11.28,135.89,135.83,11.3583]
[1726174785497,11.28,135.87,135.83,11.3583]
[1726174786488,3.66517002,135.9,135.83,11.3583]
[1726174786489,11.28,135.86,135.83,11.3583]
[1726174786692,11.28,135.86,135.83,14.6712]
[1726174786900,11.28,135.86,135.83,11.3583]
[1726174787793,11.28,135.86,135.84,3.3128]
[1726174790503,11.28,135.86,135.83,13.3855]
[1726174791110,11.28,135.86,135.84,3.3127]
[1726174791406,11.28,135.87,135.84,3.3127]
[1726174793607,11.28,135.88,135.84,11.28]
[1726174793795,11.28,135.88,135.83,21.3525]
[1726174794196,3.65041967,135.91,135.85,11.28]
[1726174794394,11.28,135.89,135.85,11.28]
[1726174794888,11.28,135.89,135.86,3.3121]
[1726174798001,3.3112,135.91,135.87,3.3121]
[1726174798207,11.28,135.9,135.86,11.28]
[1726174798706,11.28,135.91,135.87,11.28]
[1726174799212,11.28,135.91,135.88,3.3117]
[1726174800303,11.28,135.91,135.86,11.28]
[1726174800693,3.75322093,135.95,135.87,11.28]
[1726174801015,11.28,135.91,135.87,11.28]
[1726174801503,3.59266892,135.94,135.88,3.3117]
[1726174801504,3.311,135.92,135.88,3.3117]
[1726174801808,11.28,135.91,135.87,11.28]
[1726174802309,11.28,135.91,135.88,3.3117]
[1726174803014,11.28,135.91,135.89,3.3116]
[1726174803404,11.28,135.92,135.89,3.3116]
[1726174803899,11.28,135.93,135.9,3.3113]
[1726174806309,11.28,135.91,135.87,7.361]
[1726174806501,11.28,135.9,135.87,7.361]
[1726174807710,14.5915,135.9,135.87,7.361]
[1726174809709,11.28,135.88,135.85,10.6735]
[1726174812309,14.5919,135.88,135.85,7.361]
[1726174812513,3.66396591,135.91,135.84,6.0057]
[1726174812514,11.28,135.87,135.84,6.0057]
[1726174812708,14.5923,135.87,135.84,2.6929]
[1726174812914,11.28,135.86,135.84,2.6929]
[1726174814812,14.5923,135.87,135.84,2.6929]
[1726174816010,3.3123,135.87,135.84,6.0057]
[1726174816209,14.5923,135.87,135.84,6.0057]
[1726174822129,11.28,135.86,135.84,2.6929]
[1726174822715,14.5923,135.86,135.84,2.6929]
[1726174823633,11.28,135.86,135.84,2.6929]
[1726174824423,14.5925,135.86,135.84,2.6929]
[1726174824615,11.28,135.86,135.82,10.6742]
[1726174826019,11.28,135.84,135.82,3.3132]
[1726174826222,11.28,135.83,135.78,7.361]
[1726174826427,11.28,135.82,135.78,7.361]
[1726174826625,11.28,135.82,135.79,3.314]
[1726174826820,11.28,135.82,135.8,7.361]
[1726174827818,14.5933,135.82,135.8,7.361]
[1726174828317,14.5933,135.82,135.79,7.361]
[1726174828523,14.5933,135.82,135.78,3.3142]
[1726174828722,14.5933,135.82,135.78,14.5942]
[1726174829426,14.5933,135.82,135.79,7.361]
[1726174830919,14.5933,135.82,135.78,3.3142]
[1726174831119,14.5933,135.82,135.79,7.361]
[1726174832835,14.5933,135.82,135.78,3.3142]
[1726174833023,11.28,135.81,135.78,3.3142]
[1726174833226,11.28,135.81,135.79,7.361]
[1726174833721,11.28,135.81,135.78,3.3142]
[1726174834131,11.28,135.81,135.79,7.361]
[1726174835437,11.28,135.8,135.78,7.361]
[1726174835726,11.28,135.79,135.78,7.361]
[1726174836436,11.28,135.8,135.78,7.361]
[1726174838735,3.3137,135.81,135.79,7.361]
[1726174838931,11.28,135.8,135.79,7.361]
[1726174839726,11.28,135.8,135.78,7.361]
[1726174843127,11.28,135.79,135.77,1.4271]
[1726174844428,11.28,135.79,135.78,7.361]
[1726174847038,11.28,135.79,135.76,8.7764]
[1726174847837,11.28,135.79,135.78,7.361]
[1726174848038,14.5937,135.81,135.78,7.361]
[1726174849439,3.3136,135.81,135.79,7.361]
[1726174849641,14.5936,135.81,135.79,7.361]
[1726174850647,14.5936,135.81,135.78,3.3141]
[1726174850836,11.28,135.8,135.78,10.6751]
[1726174851132,14.5939,135.8,135.78,7.361]
[1726174852237,14.5941,135.79,135.76,12.0911]
[1726174857941,11.28,135.79,135.76,12.0911]
[1726174858842,11.28,135.79,135.78,7.361]
[1726174860240,3.3137,135.81,135.78,10.6753]
[1726174860438,11.28,135.81,135.78,7.361]
[1726174860640,11.28,135.8,135.78,7.361]
[1726174861242,11.28,135.8,135.77,7.361]
[1726174861548,11.28,135.78,135.76,1.4154]
[1726174861746,11.28,135.79,135.76,1.4154]
[1726174862045,14.5941,135.79,135.77,7.361]
[1726174862653,11.28,135.79,135.77,7.361]
[1726174866454,3.3139,135.8,135.77,7.361]
[1726174866655,11.28,135.79,135.77,7.361]
[1726174867155,14.5941,135.79,135.77,7.361]
[1726174867557,158.93488331,135.84,135.77,7.361]
[1726174867753,11.28,135.79,135.77,10.6755]
[1726174868347,11.28,135.8,135.78,10.6753]
[1726174869057,155.22539598,135.84,135.79,11.28]
[1726174869258,155.22539598,135.84,135.76,1.4154]
[1726174869259,166.50539598,135.84,135.8,11.28]
[1726174869447,155.22539598,135.84,135.81,11.28]
[1726174869654,11.28,135.85,135.81,11.28]
[1726174870145,11.28,135.85,135.82,3.3133]
[1726174870552,11.28,135.85,135.82,21.9542]
[1726174870755,11.28,135.85,135.82,18.641]
[1726174872355,3.66264084,135.89,135.82,18.641]
[1726174872657,11.28,135.86,135.82,18.641]
[1726174873544,11.28,135.86,135.83,3.3129]
[1726174876263,11.28,135.86,135.83,10.6739]
[1726174879165,3.3122,135.87,135.84,3.3128]
[1726174879464,14.5922,135.87,135.84,3.3128]
[1726174882765,3.3122,135.87,135.84,3.3128]
[1726174883064,14.5919,135.88,135.85,3.3126]
[1726174883468,14.5919,135.88,135.85,14.5926]
[1726174883469,3.3119,135.88,135.85,14.5926]
[1726174883857,3.3117,135.89,135.86,3.3123]
[1726174884365,11.28,135.9,135.86,11.28]
[1726174884569,14.5915,135.9,135.87,3.312]
[1726174885269,3.3117,135.89,135.87,3.312]
[1726174885666,3.3117,135.89,135.86,14.5922]
[1726174886068,11.28,135.89,135.86,3.3122]
[1726174886273,11.28,135.89,135.85,12.0328]
[1726174886466,11.28,135.88,135.85,7.361]
[1726174886861,3.3121,135.87,135.85,7.361]
[1726174889276,3.3123,135.86,135.85,7.361]
[1726174890163,14.5922,135.87,135.85,7.361]
[1726174891567,14.5922,135.87,135.84,3.3127]
[1726174892276,14.5922,135.87,135.84,10.6737]
[1726174893372,3.3122,135.87,135.84,21.9537]
[1726174897989,3.3124,135.86,135.84,21.9537]
[1726174898790,3.3124,135.86,135.84,18.641]
[1726174899287,11.28,135.86,135.82,7.361]
[1726174899491,11.28,135.85,135.82,7.361]
[1726174899791,3.3131,135.83,135.82,7.361]
[1726174901798,11.28,135.83,135.73,7.361]
[1726174901989,11.28,135.83,135.79,7.361]
[1726174902488,3.3134,135.82,135.79,7.361]
[1726174903986,3.3134,135.82,135.79,10.6751]
[1726174905698,14.5932,135.83,135.81,7.361]
[1726174906796,14.5932,135.83,135.8,3.3138]
[1726174907093,14.5932,135.83,135.81,7.361]
[1726174910497,3.3133,135.82,135.81,7.361]
[1726174911388,14.5932,135.83,135.81,10.6745]
[1726174922008,11.28,135.82,135.77,7.361]
[1726174922208,11.28,135.8,135.77,7.361]
[1726174923798,14.5938,135.8,135.77,10.6754]
[1726174924205,14.5942,135.79,135.75,3.3149]
[1726174924399,14.5942,135.79,135.76,7.361]
[1726174924802,14.5942,135.79,135.78,7.361]
[1726174924803,11.28,135.79,135.78,7.361]
[1726174925299,14.5939,135.8,135.78,7.361]
[1726174926804,11.28,135.8,135.78,7.361]
[1726174927912,11.28,135.8,135.79,7.361]
[1726174928111,14.5938,135.8,135.79,7.361]
[1726174929011,14.5938,135.8,135.77,7.361]
[1726174929713,14.5938,135.8,135.77,10.6755]
[1726174932912,230.622,135.92,135.8,7.361]
[1726174933118,11.28,135.83,135.8,7.361]
[1726174933513,14.5932,135.83,135.8,10.6748]
[1726174933713,14.5932,135.83,135.8,7.361]
[1726174934114,14.5932,135.83,135.79,10.6749]
[1726174934521,3.3134,135.82,135.79,10.6749]
[1726174937838,14.5938,135.81,135.77,7.361]
[1726174938037,11.28,135.81,135.77,18.641]
[1726174938333,11.28,135.81,135.78,3.3141]
[1726174938629,11.28,135.81,135.79,7.361]
[1726174939035,11.28,135.81,135.79,10.675]
[1726174939716,11.28,135.81,135.78,7.361]
[1726174939920,11.28,135.8,135.78,7.361]
[1726174940116,11.28,135.79,135.78,7.361]
[1726174940321,14.5941,135.79,135.78,7.361]
[1726174940827,3.3143,135.78,135.75,10.6759]
[1726174941028,11.28,135.79,135.75,10.6759]
[1726174941631,3.3144,135.78,135.75,10.6759]
[1726174941821,11.28,135.79,135.76,3.3148]
[1726174942022,14.5942,135.79,135.76,3.3148]
[1726174942732,14.5942,135.79,135.75,10.6759]
[1726174942930,14.5943,135.78,135.75,3.3149]
[1726174943131,14.5943,135.78,135.75,10.6759]
[1726174943722,14.5946,135.77,135.73,4.0547]
[1726174943935,14.5946,135.77,135.74,7.361]
[1726174944932,14.5946,135.77,135.74,10.6763]
[1726174946431,11.28,135.76,135.74,10.6763]
[1726174946630,14.5948,135.76,135.74,7.361]
[1726174949831,11.28,135.75,135.74,7.361]
[1726174959658,3.3148,135.76,135.74,7.361]
[1726174959953,11.28,135.75,135.74,7.361]
[1726174964849,11.28,135.75,135.74,10.6763]
[1726174966359,11.28,135.75,135.74,3.3153]
[1726174968054,14.5951,135.75,135.73,3.3154]
[1726174968257,11.28,135.74,135.73,3.3154]
[1726174970252,155.29418895,135.79,135.73,7.374]
[1726174970452,11.28,135.76,135.73,7.374]
[1726174971556,11.28,135.76,135.74,3.3151]
[1726174971758,11.28,135.76,135.74,10.6891]
[1726174973164,11.28,135.75,135.74,3.3151]
[1726174977564,11.28,135.75,135.74,10.6891]
[1726174980367,11.28,135.75,135.73,10.6894]
[1726174980568,11.28,135.74,135.73,10.6894]
[1726174983976,11.28,135.74,135.73,10.6895]
[1726174995780,11.28,135.75,135.74,3.3153]
[1726174997679,11.28,135.75,135.69,2.6694]
[1726174997878,11.28,135.72,135.69,10.0434]
[1726174998082,11.28,135.72,135.71,3.316]
[1726174999880,11.28,135.72,135.7,3.3161]
[1726175000184,11.28,135.71,135.7,3.3161]
[1726175001970,11.28,135.71,135.7,10.6901]
[1726175002484,11.28,135.72,135.7,10.6901]
[1726175006286,3.3153,135.74,135.71,10.69]
[1726175006488,14.5953,135.74,135.71,10.69]
[1726175018208,14.5953,135.74,135.72,4.06]
[1726175024216,14.5953,135.74,135.73,0.7]
[1726175026912,11.28,135.74,135.69,2.2]
[1726175027111,11.28,135.7,135.69,2.2]
[1726175027317,11.28,135.7,135.65,10.6913]
[1726175027614,14.5968,135.68,135.65,10.6913]
[1726175029818,14.597,135.67,135.65,7.374]
[1726175032409,11.28,135.7,135.65,18.654]
[1726175033615,14.5964,135.7,135.67,7.374]
[1726175034008,11.28,135.7,135.67,7.374]
[1726175034204,3.3171,135.67,135.65,7.374]
[1726175034512,14.5971,135.67,135.65,7.374]
[1726175037316,11.28,135.66,135.64,2.2]
[1726175037519,11.28,135.65,135.64,2.2]
[1726175038015,14.5975,135.65,135.64,2.2]
[1726175039619,3.3175,135.65,135.64,2.2]
[1726175039810,14.5975,135.65,135.64,2.2]
[1726175040014,3.3175,135.65,135.64,2.2]
[1726175040216,14.5975,135.65,135.64,2.2]
[1726175040813,11.28,135.65,135.64,2.2]
[1726175042406,3.76502248,135.7,135.64,9.574]
[1726175042609,11.28,135.67,135.64,2.2]
[1726175043009,11.28,135.67,135.65,3.3173]
[1726175043423,11.28,135.67,135.65,3.3175]
[1726175043629,11.28,135.67,135.65,7.374]
[1726175044319,155.35741601,135.72,135.65,11.28]
[1726175044532,11.28,135.69,135.66,7.374]
[1726175044720,11.28,135.68,135.67,3.3169]
[1726175044919,11.28,135.68,135.64,14.8822]
[1726175045617,11.28,135.68,135.65,7.374]
[1726175045817,11.28,135.68,135.67,7.374]
[1726175048227,11.28,135.68,135.66,3.3171]
[1726175048528,11.28,135.68,135.67,7.374]
[1726175050227,11.28,135.68,135.67,10.691]
[1726175050429,11.28,135.68,135.67,3.317]
[1726175050623,11.28,135.68,135.67,10.691]
[1726175053028,3.3164,135.7,135.67,3.317]
[1726175053532,3.3166,135.69,135.67,3.317]
[1726175055836,155.35741601,135.72,135.63,1.3648]
[1726175056833,3.3167,135.69,135.66,3.3172]
[1726175058235,3.3168,135.68,135.66,3.3172]
[1726175058823,155.35741601,135.72,135.64,1.3735]
[1726175059132,155.35741601,135.72,135.63,1.3648]
[1726175059331,3.3173,135.66,135.64,7.374]
[1726175062029,3.3175,135.65,135.64,7.374]
[1726175063140,3.3175,135.65,135.63,1.3648]
[1726175063740,3.3175,135.65,135.64,7.374]
[1726175065943,3.3173,135.66,135.64,7.374]
[1726175067841,3.3171,135.67,135.64,10.6916]
[1726175068238,155.35741601,135.72,135.64,7.374]
[1726175068538,155.35741601,135.72,135.66,3.3171]
[1726175068539,3.3168,135.68,135.66,3.3171]
[1726175072449,3.3168,135.68,135.65,3.3174]
[1726175073247,3.3171,135.67,135.65,3.3174]
[1726175073946,3.3171,135.67,135.64,12.0825]
[1726175078753,3.3171,135.67,135.65,3.3174]
[1726175081054,3.3171,135.67,135.64,12.0826]
[1726175083353,3.3171,135.67,135.65,3.3175]
[1726175085550,3.3171,135.67,135.64,12.0826]
[1726175098460,3.3171,135.67,135.64,14.2726]
[1726175100258,3.3171,135.67,135.65,3.3175]
[1726175100558,3.3171,135.67,135.64,10.955]
[1726175101172,3.3171,135.67,135.64,14.2725]
[1726175101664,3.3171,135.67,135.64,14.7040783]
[1726175101854,3.3171,135.67,135.64,16.1032783]
[1726175102763,3.3171,135.67,135.65,3.3174]
[1726175103963,3.3168,135.68,135.65,3.3174]
[1726175115972,3.317,135.67,135.65,3.3174]
[1726175119174,3.317,135.67,135.66,2.19]
[1726175142592,3.3185,135.61,135.59,2.7402]
[1726175143086,3.3187,135.6,135.59,2.7402]
[1726175143489,3.77194276,135.64,135.57,123.31850413]
[1726175143687,3.3189,135.6,135.56,3.3195]
[1726175143994,32.34211972,135.71,135.55,4.0236]
[1726175144191,32.34211972,135.71,135.55,7.72657979]
[1726175144982,3.3186,135.61,135.57,3.3192]
[1726175145296,10.23211972,135.71,135.56,7.374]
[1726175145488,3.3181,135.63,135.59,3.3188]
[1726175146488,10.23211972,135.71,135.56,7.374]
[1726175147795,3.3177,135.64,135.56,7.374]
[1726175148290,3.3177,135.64,135.6,3.3185]
[1726175148691,3.318,135.63,135.6,3.3185]
[1726175148888,3.318,135.63,135.59,3.3188]
[1726175150086,3.318,135.63,135.6,3.3187]
[1726175150285,3.3178,135.64,135.6,3.3187]
[1726175153199,3.318,135.63,135.6,3.3187]
[1726175153499,3.318,135.63,135.59,3.3188]
[1726175153687,10.23211972,135.71,135.59,3.3188]
[1726175155293,10.23211972,135.71,135.6,3.3187]
[1726175157890,3.3179,135.64,135.6,3.3187]
[1726175160104,3.3179,135.64,135.61,3.3184]
[1726175161297,155.41806454,135.68,135.63,3.318]
[1726175162303,3.3172,135.66,135.63,3.318]
[1726175162514,155.41806454,135.68,135.58,7.374]
[1726175162692,155.41806454,135.68,135.59,1.361]
[1726175163098,3.317,135.67,135.63,3.3178]
[1726175164508,3.3172,135.66,135.63,3.3178]
[1726175166206,3.3172,135.66,135.62,3.3181]
[1726175169211,3.3175,135.65,135.62,3.3181]
[1726175171406,3.3175,135.65,135.63,3.3179]
[1726175180713,3.3175,135.65,135.62,3.3181]
[1726175180919,155.41806454,135.68,135.6,2.7103]
[1726175183416,3.3182,135.62,135.6,2.7103]
[1726175185223,3.3182,135.62,135.59,10.6928]
[1726175185426,155.41806454,135.68,135.58,123.3405667]
[1726175186315,3.3188,135.6,135.58,123.3405667]
[1726175186715,3.65761911,135.63,135.58,123.3405667]
[1726175187025,155.41806454,135.68,135.56,4.1741]
[1726175187026,3.3191,135.59,135.56,4.1741]
[1726175190327,3.72676685,135.63,135.56,2.7735]
[1726175190512,6.6344,135.67,135.56,2.7735]
[1726175191125,3.3194,135.58,135.56,2.7735]
[1726175191723,3.3194,135.58,135.54,3.3201]
[1726175192225,3.3194,135.58,135.54,6.99217672]
[1726175193537,3.3194,135.58,135.54,3.3201]
[1726175193723,3.3194,135.58,135.54,6.9791644]
[1726175194835,3.3194,135.58,135.55,3.3199]
[1726175195130,3.3194,135.58,135.52,7.374]
[1726175195323,3.3195,135.57,135.54,3.32]
[1726175197028,3.64588712,135.62,135.53,3.3202]
[1726175197230,6.6346,135.66,135.53,3.3202]
[1726175197629,3.3196,135.57,135.54,3.3201]
[1726175203939,6.6346,135.66,135.52,3.75221369]
[1726175204128,6.6346,135.66,135.51,2.6376]
[1726175204334,6.6346,135.66,135.56,3.3196]
[1726175204936,3.3191,135.59,135.56,3.3196]
[1726175206430,3.3188,135.6,135.56,3.3196]
[1726175207334,3.319,135.59,135.56,3.3196]
[1726175209441,3.3183,135.62,135.58,3.319]
[1726175209735,155.41806454,135.68,135.58,3.319]
[1726175210129,3.3184,135.62,135.58,3.319]
[1726175210633,3.3181,135.63,135.59,3.3189]
[1726175211337,3.3181,135.63,135.6,3.3187]
[1726175211541,3.3178,135.64,135.6,3.3187]
[1726175214038,3.3178,135.64,135.58,3.72252065]
[1726175214039,155.41806454,135.68,135.58,3.72252065]
[1726175214234,155.41806454,135.68,135.52,7.374]
[1726175214635,3.3179,135.64,135.6,3.3186]
[1726175215639,155.41806454,135.68,135.58,3.64987461]
[1726175215836,155.41806454,135.68,135.59,4.1865]
[1726175216042,155.41806454,135.68,135.6,3.60635786]
[1726175216525,155.41806454,135.68,135.62,3.3181]
[1726175216526,3.3174,135.66,135.62,3.3181]
[1726175218353,3.3175,135.65,135.62,3.3181]
[1726175223443,155.41806454,135.68,135.63,3.3178]
[1726175223943,3.3172,135.67,135.63,3.3178]
[1726175224455,155.41806454,135.68,135.63,3.3178]
[1726175224848,3.3171,135.67,135.63,3.3178]
[1726175226048,3.3173,135.66,135.63,3.3178]
[1726175226850,3.317,135.67,135.59,11.5605]
[1726175227349,3.317,135.67,135.59,15.20098672]
[1726175227545,3.317,135.67,135.64,3.3177]
[1726175228940,3.317,135.67,135.63,3.3178]
[1726175229851,3.317,135.67,135.64,3.3177]
[1726175231451,155.41806454,135.68,135.65,3.3172]
[1726175231750,3.59971972,135.71,135.65,3.3172]
[1726175231947,6.6304,135.75,135.65,3.3172]
[1726175232345,10.40289262,135.75,135.65,3.3172]
[1726175235461,3.3167,135.69,135.65,3.3172]
[1726175240955,3.3167,135.69,135.66,3.3172]
[1726175241161,3.3164,135.7,135.59,15.20098672]
[1726175241657,3.3164,135.7,135.67,3.3169]
[1726175246950,3.3161,135.71,135.67,3.3169]
[1726175248858,3.3161,135.71,135.67,6.1591]
[1726175250950,155.3574749,135.74,135.68,3.3166]
[1726175251151,3.3154,135.74,135.67,2.8422]
[1726175251355,3.3154,135.74,135.68,1.3547]
[1726175252254,3.3154,135.74,135.71,3.3158]
[1726175252655,3.3149,135.76,135.68,1.3547]
[1726175252856,9.9395,135.83,135.72,3.3155]
[1726175253157,3.315,135.76,135.72,3.3155]
[1726175254155,3.3151,135.75,135.72,3.3155]
[1726175254963,3.3148,135.76,135.72,3.3155]
[1726175255463,3.3148,135.76,135.73,3.3155]
[1726175255660,3.3146,135.77,135.73,3.3155]
[1726175256656,3.3148,135.76,135.72,3.3156]
[1726175257051,3.3148,135.76,135.68,1.3547]
[1726175257260,3.68938879,135.8,135.68,1.3547]
[1726175257261,3.3147,135.77,135.68,1.3547]
[1726175258369,3.3147,135.77,135.74,3.3151]
[1726175258763,3.3143,135.79,135.75,3.750375]
[1726175258965,3.60373493,135.83,135.77,3.3144]
[1726175259157,6.6239,135.88,135.77,3.3144]
[1726175259754,6.6239,135.88,135.78,5.89]
[1726175259959,3.3137,135.81,135.78,5.89]
[1726175261265,177.51939228,135.9,135.78,5.89]
[1726175261473,1.14342566,135.89,135.78,5.89]
[1726175261969,3.3132,135.83,135.79,3.314]
[1726175262274,3.68002357,135.86,135.78,5.89]
[1726175262474,3.313,135.84,135.8,3.3137]
[1726175263069,3.65755745,135.86,135.8,3.3137]
[1726175263270,155.38939228,135.9,135.8,3.3137]
[1726175264573,3.313,135.84,135.8,3.3137]
[1726175267177,3.313,135.84,135.81,0.72]
[1726175268078,3.62551561,135.86,135.81,0.72]
[1726175268079,3.3131,135.83,135.81,0.72]